[Event "Titled Tuesday Blitz January 10 Late 2023"]
[White "Ratnesan, Ranesh"]
[Black "Pein, Jonathan"]
[WhiteFideId "439339"]
[BlackFideId "417092"]
[WhiteElo "2260"]
[BlackElo "2265"]
[Result "1-0"]
[Round "02"]
[TimeControl "180+2"]
[Date "2023.01.10"]
[WhiteClock "0:00:20"]
[BlackClock "0:00:05"]

1. d4 {[%clk 0:00:00]}  g6 {[%clk 0:00:00]} 2. c4 {[%clk 0:02:59]}  Bg7 {[%clk 0:02:57]} 3. Nc3 {[%clk 0:02:49]}  Nf6 {[%clk 0:02:57]} 4. e4 {[%clk 0:02:49]}  O-O {[%clk 0:02:56]} 5. Be2 {[%clk 0:02:46]}  d6 {[%clk 0:02:57]} 6. Be3 {[%clk 0:02:46]}  e5 {[%clk 0:02:54]} 7. d5 {[%clk 0:02:47]}  a5 {[%clk 0:02:53]} 8. g4 {[%clk 0:02:42]}  Na6 {[%clk 0:02:50]} 9. h4 {[%clk 0:02:42]}  Nc5 {[%clk 0:02:49]} 10. f3 {[%clk 0:02:39]}  Bd7 {[%clk 0:02:46]} 11. Qd2 {[%clk 0:02:39]}  a4 {[%clk 0:02:46]} 12. h5 {[%clk 0:02:38]}  c6 {[%clk 0:02:46]} 13. dxc6 {[%clk 0:02:32]}  Bxc6 {[%clk 0:02:44]} 14. hxg6 {[%clk 0:02:17]}  fxg6 {[%clk 0:02:35]} 15. Rd1 {[%clk 0:02:11]}  Qb6 {[%clk 0:02:36]} 16. g5 {[%clk 0:02:09]}  Nh5 {[%clk 0:02:18]} 17. Nd5 {[%clk 0:01:37]}  Bxd5 {[%clk 0:02:11]} 18. Qxd5+ {[%clk 0:01:31]}  Rf7 {[%clk 0:02:00]} 19. Qxd6 {[%clk 0:01:32]}  Qb4+ {[%clk 0:01:52]} 20. Qd2 {[%clk 0:01:32]}  Qxd2+ {[%clk 0:01:20]} 21. Rxd2 {[%clk 0:01:21]}  Ne6 {[%clk 0:01:11]} 22. c5 {[%clk 0:01:22]}  Nd4 {[%clk 0:01:11]} 23. Bc4 {[%clk 0:01:19]}  Rf8 {[%clk 0:01:11]} 24. Rh3 {[%clk 0:01:17]}  Rc8 {[%clk 0:01:07]} 25. b4 {[%clk 0:01:08]}  axb3 {[%clk 0:00:59]} 26. axb3 {[%clk 0:00:56]}  Rxc5 {[%clk 0:00:59]} 27. Ra2 {[%clk 0:00:56]}  Rc8 {[%clk 0:00:58]} 28. Ra7 {[%clk 0:00:52]}  Bf8 {[%clk 0:00:49]} 29. Ne2 {[%clk 0:00:45]}  Nc2+ {[%clk 0:00:20]} 30. Kd2 {[%clk 0:00:33]}  Nxe3 {[%clk 0:00:18]} 31. Bxf7+ {[%clk 0:00:21]}  Kxf7 {[%clk 0:00:17]} 32. Rxb7+ {[%clk 0:00:22]}  Kg8 {[%clk 0:00:10]} 33. Kxe3 {[%clk 0:00:22]}  Bc5+ {[%clk 0:00:11]} 34. Kd3 {[%clk 0:00:22]}  Rd8+ {[%clk 0:00:11]} 35. Kc4 {[%clk 0:00:20]}  Bf8 {[%clk 0:00:12]} 36. Nc3 {[%clk 0:00:20]}  Nf4 {[%clk 0:00:13]} 37. Rhxh7 {[%clk 0:00:20]}  Rc8+ {[%clk 0:00:12]} 38. Rhc7 {[%clk 0:00:19]}  Rd8 {[%clk 0:00:10]} 39. Nd5 {[%clk 0:00:19]}  Nxd5 {[%clk 0:00:09]} 40. exd5 {[%clk 0:00:19]}  e4 {[%clk 0:00:09]} 41. fxe4 {[%clk 0:00:20]}  Re8 {[%clk 0:00:05]} 42. Kd4 {[%clk 0:00:20]}  Kh8 {[%clk 0:00:06]} 43. e5 {[%clk 0:00:19]}  Bg7 {[%clk 0:00:05]} 44. Rxg7 {[%clk 0:00:20]}  Rxe5 {[%clk 0:00:05]} 45. Rh7+ {[%clk 0:00:19]}  Kg8 {[%clk 0:00:05]} 46. Rbg7+ {[%clk 0:00:20]}  Kf8 {[%clk 0:00:05]} 47. Kxe5 {[%clk 0:00:20]} 1-0


[Site "https://www.chess.com"]

[Event "Titled Tuesday Blitz January 10 Late 2023"]
[White "Khandelwal, Ankush"]
[Black "Thiel, Thomas"]
[WhiteFideId "413470"]
[BlackFideId "4615964"]
[WhiteElo "2205"]
[BlackElo "2234"]
[Result "1-0"]
[Round "02"]
[TimeControl "180+2"]
[Date "2023.01.10"]
[WhiteClock "0:00:20"]
[BlackClock "0:00:43"]

1. e4 {[%clk 0:00:00]}  d5 {[%clk 0:00:00]} 2. exd5 {[%clk 0:03:00]}  Nf6 {[%clk 0:02:59]} 3. d4 {[%clk 0:03:00]}  Nxd5 {[%clk 0:02:58]} 4. Nf3 {[%clk 0:02:52]}  g6 {[%clk 0:02:55]} 5. Bc4 {[%clk 0:02:40]}  Bg7 {[%clk 0:02:54]} 6. O-O {[%clk 0:02:26]}  O-O {[%clk 0:02:53]} 7. h3 {[%clk 0:02:25]}  Nc6 {[%clk 0:02:52]} 8. Bb3 {[%clk 0:02:25]}  a5 {[%clk 0:02:51]} 9. c4 {[%clk 0:02:11]}  Nb6 {[%clk 0:02:44]} 10. d5 {[%clk 0:02:10]}  Ne5 {[%clk 0:02:42]} 11. Nxe5 {[%clk 0:02:08]}  Bxe5 {[%clk 0:02:41]} 12. Nc3 {[%clk 0:02:07]}  Bxc3 {[%clk 0:02:41]} 13. bxc3 {[%clk 0:02:05]}  a4 {[%clk 0:02:32]} 14. Bc2 {[%clk 0:02:06]}  Qd6 {[%clk 0:02:31]} 15. Bh6 {[%clk 0:02:05]}  Rd8 {[%clk 0:02:19]} 16. Qd4 {[%clk 0:01:58]}  Qf6 {[%clk 0:02:16]} 17. Qxf6 {[%clk 0:01:57]}  exf6 {[%clk 0:02:14]} 18. Bd3 {[%clk 0:01:00]}  c6 {[%clk 0:02:12]} 19. Bf4 {[%clk 0:00:41]}  Nd7 {[%clk 0:02:01]} 20. Bc7 {[%clk 0:00:41]}  Re8 {[%clk 0:01:58]} 21. Rfe1 {[%clk 0:00:32]}  Rxe1+ {[%clk 0:01:56]} 22. Rxe1 {[%clk 0:00:32]}  Kg7 {[%clk 0:01:14]} 23. Re8 {[%clk 0:00:32]}  Nc5 {[%clk 0:01:13]} 24. Be2 {[%clk 0:00:31]}  cxd5 {[%clk 0:00:57]} 25. cxd5 {[%clk 0:00:21]}  Na6 {[%clk 0:00:44]} 26. Bb6 {[%clk 0:00:22]}  f5 {[%clk 0:00:43]} 27. d6 {[%clk 0:00:20]} 1-0


[Site "https://www.chess.com"]

[Event "Titled Tuesday Blitz January 10 Late 2023"]
[White "Wu, Brandon"]
[Black "Tyagi, Kushan"]
[WhiteFideId "30909228"]
[BlackFideId "2040069"]
[WhiteElo "2123"]
[BlackElo "2060"]
[Result "0-1"]
[Round "02"]
[TimeControl "180+2"]
[Date "2023.01.10"]
[WhiteClock "0:00:57"]
[BlackClock "0:00:32"]

1. Nf3 {[%clk 0:00:00]}  c5 {[%clk 0:00:00]} 2. d4 {[%clk 0:03:00]}  cxd4 {[%clk 0:02:59]} 3. Nxd4 {[%clk 0:03:00]}  d5 {[%clk 0:02:59]} 4. g3 {[%clk 0:03:01]}  Nc6 {[%clk 0:02:56]} 5. Bg2 {[%clk 0:03:00]}  Nf6 {[%clk 0:02:56]} 6. O-O {[%clk 0:02:59]}  e5 {[%clk 0:02:56]} 7. Nxc6 {[%clk 0:02:56]}  bxc6 {[%clk 0:02:57]} 8. c4 {[%clk 0:02:56]}  Rb8 {[%clk 0:02:58]} 9. cxd5 {[%clk 0:02:57]}  cxd5 {[%clk 0:02:58]} 10. Qa4+ {[%clk 0:02:46]}  Qd7 {[%clk 0:02:59]} 11. Qxd7+ {[%clk 0:02:46]}  Bxd7 {[%clk 0:02:58]} 12. Nc3 {[%clk 0:02:39]}  d4 {[%clk 0:02:59]} 13. Nd5 {[%clk 0:02:39]}  Nxd5 {[%clk 0:02:58]} 14. Bxd5 {[%clk 0:02:35]}  Bb5 {[%clk 0:02:50]} 15. Re1 {[%clk 0:02:36]}  Bb4 {[%clk 0:02:45]} 16. Kf1 {[%clk 0:02:26]}  Bxe1 {[%clk 0:02:42]} 17. Kxe1 {[%clk 0:02:16]}  O-O {[%clk 0:02:41]} 18. a4 {[%clk 0:02:17]}  Bd7 {[%clk 0:02:36]} 19. f4 {[%clk 0:02:09]}  Be6 {[%clk 0:02:30]} 20. Bxe6 {[%clk 0:02:02]}  fxe6 {[%clk 0:02:25]} 21. fxe5 {[%clk 0:01:58]}  Rf5 {[%clk 0:02:26]} 22. Ra3 {[%clk 0:01:59]}  g5 {[%clk 0:02:19]} 23. Rd3 {[%clk 0:01:58]}  Rb4 {[%clk 0:02:08]} 24. b3 {[%clk 0:01:57]}  Rxe5 {[%clk 0:02:05]} 25. Bd2 {[%clk 0:01:57]}  Rb7 {[%clk 0:01:59]} 26. Rxd4 {[%clk 0:01:55]}  Rxb3 {[%clk 0:01:58]} 27. Rd8+ {[%clk 0:01:50]}  Kf7 {[%clk 0:01:49]} 28. Rd7+ {[%clk 0:01:49]}  Kg6 {[%clk 0:01:49]} 29. Rxa7 {[%clk 0:01:50]}  Rb1+ {[%clk 0:01:48]} 30. Kf2 {[%clk 0:01:50]}  Rb2 {[%clk 0:01:40]} 31. Be3 {[%clk 0:01:49]}  Rf5+ {[%clk 0:01:40]} 32. Ke1 {[%clk 0:01:28]}  Re5 {[%clk 0:01:27]} 33. Kf2 {[%clk 0:01:28]}  Rf5+ {[%clk 0:01:25]} 34. Ke1 {[%clk 0:01:29]}  Rb1+ {[%clk 0:01:23]} 35. Kd2 {[%clk 0:01:29]}  Rd5+ {[%clk 0:01:22]} 36. Kc3 {[%clk 0:01:29]}  Re1 {[%clk 0:01:20]} 37. Ra6 {[%clk 0:01:24]}  Kf5 {[%clk 0:01:20]} 38. h3 {[%clk 0:01:14]}  h5 {[%clk 0:01:14]} 39. Bd4 {[%clk 0:01:12]}  Rxe2 {[%clk 0:01:07]} 40. Ra8 {[%clk 0:01:07]}  Ke4 {[%clk 0:01:04]} 41. Bb6 {[%clk 0:01:07]}  Rg2 {[%clk 0:01:03]} 42. a5 {[%clk 0:01:05]}  Rxg3+ {[%clk 0:01:00]} 43. Kc4 {[%clk 0:01:00]}  Rxh3 {[%clk 0:00:59]} 44. a6 {[%clk 0:01:01]}  Ra3 {[%clk 0:00:57]} 45. Bc5 {[%clk 0:01:00]}  Ra1 {[%clk 0:00:54]} 46. a7 {[%clk 0:00:58]}  Rc1+ {[%clk 0:00:47]} 47. Kb4 {[%clk 0:00:58]}  Rdxc5 {[%clk 0:00:45]} 48. Re8 {[%clk 0:00:57]}  Rc8 {[%clk 0:00:40]} 49. a8=Q+ {[%clk 0:00:55]}  Rxa8 {[%clk 0:00:37]} 50. Rxa8 {[%clk 0:00:53]}  h4 {[%clk 0:00:37]} 51. Re8 {[%clk 0:00:54]}  Kf5 {[%clk 0:00:36]} 52. Rf8+ {[%clk 0:00:55]}  Kg4 {[%clk 0:00:35]} 53. Rf2 {[%clk 0:00:55]}  h3 {[%clk 0:00:36]} 54. Ra2 {[%clk 0:00:55]}  Rf1 {[%clk 0:00:35]} 55. Ra3 {[%clk 0:00:56]}  Rf3 {[%clk 0:00:33]} 56. Ra1 {[%clk 0:00:57]}  Kg3 {[%clk 0:00:33]} 57. Rh1 {[%clk 0:00:58]}  h2 {[%clk 0:00:33]} 58. Kc4 {[%clk 0:00:58]}  Kg2 {[%clk 0:00:32]} 59. Rxh2+ {[%clk 0:00:58]}  Kxh2 {[%clk 0:00:32]} 60. Kd4 {[%clk 0:00:57]}  g4 {[%clk 0:00:32]} 0-1


[Site "https://www.chess.com"]

[Event "Titled Tuesday Blitz January 10 Late 2023"]
[White "Sohier, Julien"]
[Black "Ezat, Mohamed"]
[WhiteFideId "645346"]
[BlackFideId "10600906"]
[WhiteElo "2214"]
[BlackElo "2402"]
[Result "1-0"]
[Round "02"]
[TimeControl "180+2"]
[Date "2023.01.10"]
[WhiteClock "0:01:25"]
[BlackClock "0:00:54"]

1. e4 {[%clk 0:00:00]}  c6 {[%clk 0:00:00]} 2. Nf3 {[%clk 0:03:00]}  d5 {[%clk 0:02:54]} 3. d3 {[%clk 0:02:58]}  dxe4 {[%clk 0:02:53]} 4. dxe4 {[%clk 0:02:59]}  Qxd1+ {[%clk 0:02:51]} 5. Kxd1 {[%clk 0:03:00]}  Bg4 {[%clk 0:02:45]} 6. Be2 {[%clk 0:03:01]}  Nd7 {[%clk 0:02:43]} 7. Ne1 {[%clk 0:03:00]}  Bxe2+ {[%clk 0:02:43]} 8. Kxe2 {[%clk 0:03:00]}  O-O-O {[%clk 0:02:39]} 9. a4 {[%clk 0:03:01]}  e6 {[%clk 0:02:38]} 10. a5 {[%clk 0:02:59]}  h5 {[%clk 0:02:37]} 11. a6 {[%clk 0:02:59]}  b6 {[%clk 0:02:33]} 12. Nd3 {[%clk 0:02:58]}  Ngf6 {[%clk 0:02:32]} 13. f3 {[%clk 0:02:58]}  Bd6 {[%clk 0:02:28]} 14. Be3 {[%clk 0:02:58]}  Ne5 {[%clk 0:02:23]} 15. Nd2 {[%clk 0:02:56]}  Nxd3 {[%clk 0:02:19]} 16. cxd3 {[%clk 0:02:55]}  c5 {[%clk 0:02:18]} 17. Rac1 {[%clk 0:02:54]}  Kb8 {[%clk 0:02:14]} 18. g3 {[%clk 0:02:52]}  h4 {[%clk 0:02:14]} 19. f4 {[%clk 0:02:33]}  Ng4 {[%clk 0:02:11]} 20. e5 {[%clk 0:02:33]}  Bc7 {[%clk 0:02:09]} 21. Ne4 {[%clk 0:02:25]}  f5 {[%clk 0:01:56]} 22. Ng5 {[%clk 0:02:25]}  Rde8 {[%clk 0:01:51]} 23. d4 {[%clk 0:02:17]}  Nxe3 {[%clk 0:01:45]} 24. Kxe3 {[%clk 0:01:54]}  cxd4+ {[%clk 0:01:29]} 25. Kxd4 {[%clk 0:01:55]}  Bd8 {[%clk 0:01:29]} 26. Nf7 {[%clk 0:01:55]}  hxg3 {[%clk 0:01:27]} 27. Nxh8 {[%clk 0:01:50]}  g2 {[%clk 0:01:18]} 28. Rhg1 {[%clk 0:01:48]}  Rxh8 {[%clk 0:01:15]} 29. Rxg2 {[%clk 0:01:44]}  Be7 {[%clk 0:01:14]} 30. Rxg7 {[%clk 0:01:43]}  Bc5+ {[%clk 0:01:12]} 31. Rxc5 {[%clk 0:01:39]}  bxc5+ {[%clk 0:01:12]} 32. Kxc5 {[%clk 0:01:37]}  Rd8 {[%clk 0:01:11]} 33. Re7 {[%clk 0:01:38]}  Rd2 {[%clk 0:01:07]} 34. Kc6 {[%clk 0:01:30]}  Rc2+ {[%clk 0:01:04]} 35. Kd6 {[%clk 0:01:25]}  Rxb2 {[%clk 0:00:54]} 36. Re8# {[%clk 0:01:25]} 1-0


[Site "https://www.chess.com"]

[Event "Titled Tuesday Blitz January 10 Late 2023"]
[White "Urbina Perez, Juan Antonio"]
[Black "Smith, Garrett L"]
[WhiteFideId "2217368"]
[BlackFideId "2024829"]
[WhiteElo "2266"]
[BlackElo "2047"]
[Result "1-0"]
[Round "02"]
[TimeControl "180+2"]
[Date "2023.01.10"]
[WhiteClock "0:00:10"]
[BlackClock "0:00:33"]

1. e4 {[%clk 0:00:00]}  c5 {[%clk 0:00:00]} 2. Nf3 {[%clk 0:03:00]}  Nc6 {[%clk 0:03:00]} 3. d4 {[%clk 0:03:00]}  cxd4 {[%clk 0:03:00]} 4. Nxd4 {[%clk 0:02:59]}  e5 {[%clk 0:03:01]} 5. Nb5 {[%clk 0:03:00]}  d6 {[%clk 0:03:01]} 6. N5c3 {[%clk 0:02:55]}  Be7 {[%clk 0:03:02]} 7. Bc4 {[%clk 0:02:52]}  Nf6 {[%clk 0:03:00]} 8. O-O {[%clk 0:02:50]}  Be6 {[%clk 0:02:50]} 9. Bb3 {[%clk 0:02:50]}  O-O {[%clk 0:02:49]} 10. Nd5 {[%clk 0:02:44]}  Nxe4 {[%clk 0:02:47]} 11. Nxe7+ {[%clk 0:02:43]}  Qxe7 {[%clk 0:02:42]} 12. Qe2 {[%clk 0:02:30]}  d5 {[%clk 0:02:42]} 13. Nd2 {[%clk 0:02:26]}  Nd4 {[%clk 0:02:37]} 14. Qe1 {[%clk 0:02:18]}  f5 {[%clk 0:02:33]} 15. c3 {[%clk 0:02:14]}  Nxb3 {[%clk 0:02:01]} 16. axb3 {[%clk 0:02:10]}  a6 {[%clk 0:01:59]} 17. f3 {[%clk 0:02:11]}  Nc5 {[%clk 0:01:54]} 18. Qxe5 {[%clk 0:02:07]}  f4 {[%clk 0:01:52]} 19. b4 {[%clk 0:01:58]}  Nd3 {[%clk 0:01:45]} 20. Qd4 {[%clk 0:01:52]}  Nxc1 {[%clk 0:01:44]} 21. Raxc1 {[%clk 0:01:52]}  Qd6 {[%clk 0:01:42]} 22. Rfe1 {[%clk 0:01:53]}  Rad8 {[%clk 0:01:38]} 23. Nb3 {[%clk 0:01:51]}  Bf5 {[%clk 0:01:29]} 24. Nc5 {[%clk 0:01:51]}  Rf7 {[%clk 0:01:27]} 25. Rcd1 {[%clk 0:01:44]}  h5 {[%clk 0:01:27]} 26. Rd2 {[%clk 0:01:41]}  h4 {[%clk 0:01:26]} 27. h3 {[%clk 0:01:39]}  b5 {[%clk 0:01:25]} 28. Qe5 {[%clk 0:01:34]}  Rf6 {[%clk 0:01:14]} 29. Qxd6 {[%clk 0:01:20]}  Rdxd6 {[%clk 0:00:56]} 30. Nb3 {[%clk 0:01:12]}  Rf7 {[%clk 0:00:56]} 31. Nd4 {[%clk 0:01:11]}  Bd7 {[%clk 0:00:53]} 32. Rde2 {[%clk 0:01:11]}  g5 {[%clk 0:00:53]} 33. Re5 {[%clk 0:01:05]}  Rg7 {[%clk 0:00:52]} 34. Nb3 {[%clk 0:01:04]}  Kf8 {[%clk 0:00:51]} 35. Rd1 {[%clk 0:00:59]}  Bc6 {[%clk 0:00:51]} 36. Nd4 {[%clk 0:00:58]}  Bd7 {[%clk 0:00:50]} 37. Kf2 {[%clk 0:00:55]}  Kf7 {[%clk 0:00:48]} 38. Nb3 {[%clk 0:00:50]}  Kf6 {[%clk 0:00:48]} 39. Re2 {[%clk 0:00:49]}  Bf5 {[%clk 0:00:47]} 40. Nc5 {[%clk 0:00:32]}  Re7 {[%clk 0:00:48]} 41. Red2 {[%clk 0:00:28]}  Rd8 {[%clk 0:00:46]} 42. Rxd5 {[%clk 0:00:25]}  Rde8 {[%clk 0:00:38]} 43. R5d2 {[%clk 0:00:23]}  Bc8 {[%clk 0:00:39]} 44. Ne4+ {[%clk 0:00:22]}  Kg7 {[%clk 0:00:38]} 45. Rd5 {[%clk 0:00:20]}  Bb7 {[%clk 0:00:37]} 46. Rxg5+ {[%clk 0:00:19]}  Kh6 {[%clk 0:00:37]} 47. Rg4 {[%clk 0:00:19]}  Bxe4 {[%clk 0:00:38]} 48. fxe4 {[%clk 0:00:18]}  Rxe4 {[%clk 0:00:38]} 49. Rxh4+ {[%clk 0:00:19]}  Kg5 {[%clk 0:00:38]} 50. Rg4+ {[%clk 0:00:19]}  Kf5 {[%clk 0:00:39]} 51. Rd2 {[%clk 0:00:20]}  Re1 {[%clk 0:00:39]} 52. Rg7 {[%clk 0:00:21]}  Rb1 {[%clk 0:00:38]} 53. Rf7+ {[%clk 0:00:16]}  Kg5 {[%clk 0:00:37]} 54. Rfd7 {[%clk 0:00:13]}  Ree1 {[%clk 0:00:35]} 55. Kf3 {[%clk 0:00:09]}  Rf1+ {[%clk 0:00:34]} 56. Ke4 {[%clk 0:00:09]}  Rbe1+ {[%clk 0:00:34]} 57. Kd5 {[%clk 0:00:09]}  Rg1 {[%clk 0:00:35]} 58. Kc6 {[%clk 0:00:10]}  Rb1 {[%clk 0:00:35]} 59. Kb6 {[%clk 0:00:10]}  Kh4 {[%clk 0:00:33]} 60. Kxa6 {[%clk 0:00:09]}  Kg3 {[%clk 0:00:34]} 61. Kxb5 {[%clk 0:00:09]}  Rxg2 {[%clk 0:00:34]} 62. Rg7+ {[%clk 0:00:09]}  Kxh3 {[%clk 0:00:33]} 63. Rgxg2 {[%clk 0:00:10]} 1-0


[Site "https://www.chess.com"]

[Event "Titled Tuesday Blitz January 10 Late 2023"]
[White "Araujo, Everson De Moura"]
[Black "Mikhalsky, Vladimir"]
[WhiteFideId "22737197"]
[BlackFideId "14144352"]
[WhiteElo "1944"]
[BlackElo "2219"]
[Result "1-0"]
[Round "02"]
[TimeControl "180+2"]
[Date "2023.01.10"]
[WhiteClock "0:01:02"]
[BlackClock "0:00:35"]

1. c4 {[%clk 0:00:00]}  c5 {[%clk 0:00:00]} 2. Nc3 {[%clk 0:03:00]}  Nf6 {[%clk 0:02:58]} 3. g3 {[%clk 0:03:01]}  d5 {[%clk 0:02:58]} 4. Bg2 {[%clk 0:03:01]}  d4 {[%clk 0:02:57]} 5. Nd5 {[%clk 0:03:02]}  Nc6 {[%clk 0:02:56]} 6. d3 {[%clk 0:02:57]}  e6 {[%clk 0:02:45]} 7. Nxf6+ {[%clk 0:02:51]}  Qxf6 {[%clk 0:02:40]} 8. Nf3 {[%clk 0:02:48]}  h6 {[%clk 0:02:40]} 9. O-O {[%clk 0:02:47]}  Bd6 {[%clk 0:02:39]} 10. Nd2 {[%clk 0:02:46]}  Qe7 {[%clk 0:02:34]} 11. Ne4 {[%clk 0:02:45]}  Bc7 {[%clk 0:02:32]} 12. a3 {[%clk 0:02:36]}  f5 {[%clk 0:02:32]} 13. Nd2 {[%clk 0:02:33]}  a5 {[%clk 0:02:26]} 14. Rb1 {[%clk 0:02:33]}  O-O {[%clk 0:02:24]} 15. Re1 {[%clk 0:02:29]}  e5 {[%clk 0:02:21]} 16. e3 {[%clk 0:02:21]}  Kh8 {[%clk 0:02:21]} 17. Nf3 {[%clk 0:02:11]}  e4 {[%clk 0:02:07]} 18. exd4 {[%clk 0:01:59]}  cxd4 {[%clk 0:01:41]} 19. dxe4 {[%clk 0:01:56]}  fxe4 {[%clk 0:01:19]} 20. Nxd4 {[%clk 0:01:53]}  Qc5 {[%clk 0:01:09]} 21. Be3 {[%clk 0:01:41]}  Qxc4 {[%clk 0:01:06]} 22. Rc1 {[%clk 0:01:37]}  Qf7 {[%clk 0:01:04]} 23. Nxc6 {[%clk 0:01:31]}  bxc6 {[%clk 0:01:04]} 24. Bxe4 {[%clk 0:01:30]}  Rb8 {[%clk 0:01:03]} 25. Rxc6 {[%clk 0:01:28]}  Rxb2 {[%clk 0:01:00]} 26. Qc1 {[%clk 0:01:14]}  Rxf2 {[%clk 0:00:51]} 27. Rxc7 {[%clk 0:01:14]}  Qh5 {[%clk 0:00:44]} 28. Bxf2 {[%clk 0:01:11]}  Rxf2 {[%clk 0:00:35]} 29. Rxc8+ {[%clk 0:01:02]} 1-0


[Site "https://www.chess.com"]

[Event "Titled Tuesday Blitz January 10 Late 2023"]
[White "Herman, Daniel"]
[Black "Koscielski, Janusz"]
[WhiteFideId "30935008"]
[BlackFideId "4614437"]
[WhiteElo "1956"]
[BlackElo "2260"]
[Result "1-0"]
[Round "02"]
[TimeControl "180+2"]
[Date "2023.01.10"]
[WhiteClock "0:00:20"]
[BlackClock "0:00:04"]

1. e4 {[%clk 0:00:00]}  c6 {[%clk 0:00:00]} 2. d4 {[%clk 0:03:00]}  d5 {[%clk 0:02:59]} 3. e5 {[%clk 0:02:58]}  Bf5 {[%clk 0:03:00]} 4. Nf3 {[%clk 0:02:58]}  e6 {[%clk 0:02:59]} 5. Be2 {[%clk 0:02:57]}  Ne7 {[%clk 0:02:59]} 6. O-O {[%clk 0:02:57]}  Ng6 {[%clk 0:02:59]} 7. c4 {[%clk 0:02:55]}  dxc4 {[%clk 0:02:58]} 8. Bxc4 {[%clk 0:02:49]}  Nd7 {[%clk 0:02:39]} 9. Nc3 {[%clk 0:02:50]}  Nb6 {[%clk 0:02:40]} 10. Bb3 {[%clk 0:02:50]}  Be7 {[%clk 0:02:39]} 11. Be3 {[%clk 0:02:49]}  O-O {[%clk 0:02:29]} 12. Rc1 {[%clk 0:02:49]}  a5 {[%clk 0:02:28]} 13. h3 {[%clk 0:02:48]}  Nh4 {[%clk 0:02:28]} 14. Nxh4 {[%clk 0:02:29]}  Bxh4 {[%clk 0:02:16]} 15. g4 {[%clk 0:02:19]}  Bg6 {[%clk 0:02:17]} 16. f4 {[%clk 0:02:11]}  a4 {[%clk 0:02:14]} 17. Nxa4 {[%clk 0:02:11]}  Nxa4 {[%clk 0:01:33]} 18. Bxa4 {[%clk 0:01:58]}  Be4 {[%clk 0:01:31]} 19. Bb3 {[%clk 0:01:59]}  h6 {[%clk 0:01:31]} 20. Qe2 {[%clk 0:01:51]}  Bd5 {[%clk 0:01:18]} 21. Bxd5 {[%clk 0:01:45]}  Qxd5 {[%clk 0:01:15]} 22. a3 {[%clk 0:01:21]}  f6 {[%clk 0:01:16]} 23. Qg2 {[%clk 0:01:21]}  Qd7 {[%clk 0:00:46]} 24. Rfd1 {[%clk 0:01:12]}  Ra5 {[%clk 0:00:29]} 25. Qe4 {[%clk 0:01:05]}  Rd5 {[%clk 0:00:26]} 26. Rf1 {[%clk 0:00:56]}  f5 {[%clk 0:00:22]} 27. gxf5 {[%clk 0:00:51]}  Rxf5 {[%clk 0:00:21]} 28. Kh2 {[%clk 0:00:41]}  Qf7 {[%clk 0:00:22]} 29. Rg1 {[%clk 0:00:41]}  Qh5 {[%clk 0:00:20]} 30. Rg4 {[%clk 0:00:40]}  Rd7 {[%clk 0:00:20]} 31. Rcg1 {[%clk 0:00:36]}  Bd8 {[%clk 0:00:18]} 32. Bf2 {[%clk 0:00:35]}  Rdf7 {[%clk 0:00:14]} 33. Qg2 {[%clk 0:00:33]}  g5 {[%clk 0:00:12]} 34. Be3 {[%clk 0:00:28]}  Kh7 {[%clk 0:00:09]} 35. fxg5 {[%clk 0:00:27]}  Bxg5 {[%clk 0:00:07]} 36. Bxg5 {[%clk 0:00:27]}  Rf2 {[%clk 0:00:04]} 37. Bf6 {[%clk 0:00:19]}  Rxg2+ {[%clk 0:00:04]} 38. R1xg2 {[%clk 0:00:20]} 1-0


[Site "https://www.chess.com"]

[Event "Titled Tuesday Blitz January 10 Late 2023"]
[White "Pasti, Aron"]
[Black "Marin Ramirez, Gerardo"]
[WhiteFideId "785857"]
[BlackFideId "3901068"]
[WhiteElo "2361"]
[BlackElo "2127"]
[Result "1/2-1/2"]
[Round "02"]
[TimeControl "180+2"]
[Date "2023.01.10"]
[WhiteClock "0:00:02"]
[BlackClock "0:00:24"]

1. e4 {[%clk 0:00:00]}  e5 {[%clk 0:00:00]} 2. Nf3 {[%clk 0:03:00]}  Nf6 {[%clk 0:02:58]} 3. Nxe5 {[%clk 0:03:01]}  d6 {[%clk 0:02:59]} 4. Nd3 {[%clk 0:02:59]}  Nxe4 {[%clk 0:02:58]} 5. Qe2 {[%clk 0:03:00]}  Qe7 {[%clk 0:02:58]} 6. Nf4 {[%clk 0:02:52]}  c6 {[%clk 0:02:55]} 7. d3 {[%clk 0:02:52]}  Nf6 {[%clk 0:02:51]} 8. b3 {[%clk 0:02:36]}  Bg4 {[%clk 0:02:49]} 9. f3 {[%clk 0:02:32]}  Qxe2+ {[%clk 0:02:49]} 10. Bxe2 {[%clk 0:02:31]}  Bf5 {[%clk 0:02:47]} 11. Bb2 {[%clk 0:02:32]}  Nbd7 {[%clk 0:02:47]} 12. Nd2 {[%clk 0:02:32]}  Nb6 {[%clk 0:02:47]} 13. g4 {[%clk 0:02:32]}  Bd7 {[%clk 0:02:40]} 14. c4 {[%clk 0:02:29]}  h6 {[%clk 0:02:33]} 15. O-O-O {[%clk 0:02:28]}  d5 {[%clk 0:02:28]} 16. h4 {[%clk 0:02:28]}  O-O-O {[%clk 0:02:28]} 17. g5 {[%clk 0:02:27]}  Ne8 {[%clk 0:02:25]} 18. a4 {[%clk 0:02:25]}  dxc4 {[%clk 0:02:10]} 19. dxc4 {[%clk 0:02:22]}  Bb4 {[%clk 0:02:07]} 20. Ne4 {[%clk 0:02:20]}  Bf5 {[%clk 0:02:03]} 21. Rxd8+ {[%clk 0:02:17]}  Kxd8 {[%clk 0:01:55]} 22. Rd1+ {[%clk 0:02:07]}  Kc8 {[%clk 0:01:55]} 23. c5 {[%clk 0:02:01]}  Nd7 {[%clk 0:01:53]} 24. Nd6+ {[%clk 0:01:56]}  Nxd6 {[%clk 0:01:50]} 25. cxd6 {[%clk 0:01:52]}  hxg5 {[%clk 0:01:49]} 26. hxg5 {[%clk 0:01:52]}  f6 {[%clk 0:01:48]} 27. gxf6 {[%clk 0:01:51]}  Nxf6 {[%clk 0:01:29]} 28. Bd3 {[%clk 0:01:44]}  Bxd3 {[%clk 0:01:27]} 29. Rxd3 {[%clk 0:01:33]}  Rh1+ {[%clk 0:01:17]} 30. Kc2 {[%clk 0:01:34]}  Rh2+ {[%clk 0:01:06]} 31. Kb1 {[%clk 0:01:35]}  Kd7 {[%clk 0:01:04]} 32. Be5 {[%clk 0:01:35]}  Rd2 {[%clk 0:00:56]} 33. Rxd2 {[%clk 0:00:45]}  Bxd2 {[%clk 0:00:52]} 34. Nd3 {[%clk 0:00:40]}  b6 {[%clk 0:00:53]} 35. Bh2 {[%clk 0:00:19]}  Bc3 {[%clk 0:00:48]} 36. Kc2 {[%clk 0:00:13]}  Bd4 {[%clk 0:00:44]} 37. Ne5+ {[%clk 0:00:12]}  Bxe5 {[%clk 0:00:44]} 38. Bxe5 {[%clk 0:00:04]}  Ne8 {[%clk 0:00:42]} 39. Kd3 {[%clk 0:00:05]}  g6 {[%clk 0:00:39]} 40. Ke4 {[%clk 0:00:05]}  Nxd6+ {[%clk 0:00:40]} 41. Kf4 {[%clk 0:00:04]}  Nf7 {[%clk 0:00:40]} 42. Bd4 {[%clk 0:00:03]}  c5 {[%clk 0:00:40]} 43. Bf2 {[%clk 0:00:03]}  Ke6 {[%clk 0:00:37]} 44. Ke4 {[%clk 0:00:02]}  Nd6+ {[%clk 0:00:36]} 45. Kf4 {[%clk 0:00:02]}  c4 {[%clk 0:00:34]} 46. bxc4 {[%clk 0:00:02]}  Nxc4 {[%clk 0:00:33]} 47. Kg5 {[%clk 0:00:02]}  Kf7 {[%clk 0:00:34]} 48. f4 {[%clk 0:00:02]}  Nb2 {[%clk 0:00:33]} 49. a5 {[%clk 0:00:02]}  bxa5 {[%clk 0:00:30]} 50. Bxa7 {[%clk 0:00:02]}  a4 {[%clk 0:00:29]} 51. Bc5 {[%clk 0:00:01]}  Nc4 {[%clk 0:00:29]} 52. f5 {[%clk 0:00:02]}  gxf5 {[%clk 0:00:27]} 53. Kxf5 {[%clk 0:00:01]}  a3 {[%clk 0:00:24]} 54. Bxa3 {[%clk 0:00:02]} 1/2-1/2


[Site "https://www.chess.com"]